[Event "Late-Titled-Tuesday-Blitz-January-23-2024"]
[Site "Chess.com"]
[Date "2024.01.23"]
[Round "4"]
[White "RamyresCoelho"]
[Black "MusicCityMaster"]
[Result "1/2-1/2"]
[WhiteElo "2261"]
[BlackElo "2464"]
[TimeControl "180+1"]
[EndTime "14:39:35 PST"]
[Termination "Game drawn - insufficient material"]

1. e4 {[%clk 0:03:00.1]} 1... e6 {[%clk 0:03:00.2]} 2. d4 {[%clk 0:02:57.9]}
2... d5 {[%clk 0:03:01.1]} 3. Nc3 {[%clk 0:02:58.1]} 3... Bb4 {[%clk 0:03:00.5]}
4. e5 {[%clk 0:02:57.1]} 4... c5 {[%clk 0:03:00.8]} 5. a3 {[%clk 0:02:54.6]}
5... Bxc3+ {[%clk 0:03:01.3]} 6. bxc3 {[%clk 0:02:55.5]} 6... Ne7 {[%clk
0:03:01.2]} 7. Qg4 {[%clk 0:02:55.6]} 7... Qc7 {[%clk 0:03:01.6]} 8. Bd2 {[%clk
0:02:49.4]} 8... Nbc6 {[%clk 0:02:52.6]} 9. Nf3 {[%clk 0:02:49]} 9... g6 {[%clk
0:02:23.8]} 10. Bd3 {[%clk 0:02:40.6]} 10... Bd7 {[%clk 0:02:19.3]} 11. O-O
{[%clk 0:02:36.6]} 11... c4 {[%clk 0:02:17.6]} 12. Be2 {[%clk 0:02:35.7]} 12...
O-O-O {[%clk 0:02:16.4]} 13. Qf4 {[%clk 0:02:34.1]} 13... h5 {[%clk 0:01:49.4]}
14. a4 {[%clk 0:02:30.6]} 14... Nf5 {[%clk 0:01:44]} 15. a5 {[%clk 0:02:26.1]}
15... Rdg8 {[%clk 0:01:40]} 16. a6 {[%clk 0:02:18]} 16... b6 {[%clk 0:01:39.7]}
17. Bc1 {[%clk 0:02:15.1]} 17... h4 {[%clk 0:01:34.7]} 18. Ba3 {[%clk
0:02:14.3]} 18... Qd8 {[%clk 0:01:29.9]} 19. Ng5 {[%clk 0:02:07.1]} 19... Rg7
{[%clk 0:01:13.4]} 20. Bg4 {[%clk 0:02:01.7]} 20... f6 {[%clk 0:01:07.8]} 21.
exf6 {[%clk 0:01:39.4]} 21... Qxf6 {[%clk 0:01:08.7]} 22. Rab1 {[%clk 0:01:36]}
22... e5 {[%clk 0:01:00]} 23. dxe5 {[%clk 0:01:34.2]} 23... Nxe5 {[%clk
0:00:57]} 24. Bxf5 {[%clk 0:01:23.3]} 24... gxf5 {[%clk 0:00:54.4]} 25. Nf3
{[%clk 0:01:11.1]} 25... Nxf3+ {[%clk 0:00:39.5]} 26. Qxf3 {[%clk 0:01:12]}
26... Bc6 {[%clk 0:00:37.9]} 27. g3 {[%clk 0:00:24.7]} 27... d4 {[%clk
0:00:37.3]} 28. Qf4 {[%clk 0:00:20.6]} 28... Rg4 {[%clk 0:00:37.1]} 29. Qd6
{[%clk 0:00:18.1]} 29... Qxd6 {[%clk 0:00:35]} 30. Bxd6 {[%clk 0:00:19]} 30...
d3 {[%clk 0:00:32]} 31. cxd3 {[%clk 0:00:17]} 31... cxd3 {[%clk 0:00:32.9]} 32.
Rfe1 {[%clk 0:00:12.7]} 32... Bf3 {[%clk 0:00:30.2]} 33. Re7 {[%clk 0:00:11.6]}
33... d2 {[%clk 0:00:28.7]} 34. Rc7+ {[%clk 0:00:06.2]} 34... Kd8 {[%clk
0:00:27]} 35. Rxa7 {[%clk 0:00:06.8]} 35... Re8 {[%clk 0:00:26.1]} 36. Bc7+
{[%clk 0:00:05.7]} 36... Kd7 {[%clk 0:00:23.9]} 37. Bf4+ {[%clk 0:00:04.9]}
37... Kc6 {[%clk 0:00:19.7]} 38. Bxd2 {[%clk 0:00:05.8]} 38... hxg3 {[%clk
0:00:17.9]} 39. fxg3 {[%clk 0:00:05.3]} 39... Re2 {[%clk 0:00:18.1]} 40. Bf4
{[%clk 0:00:02.9]} 40... Rg2+ {[%clk 0:00:17.8]} 41. Kf1 {[%clk 0:00:03.4]}
41... Rxh2 {[%clk 0:00:18.2]} 42. Rc7+ {[%clk 0:00:04.1]} 42... Kd5 {[%clk
0:00:18.2]} 43. Rb5+ {[%clk 0:00:03.7]} 43... Ke4 {[%clk 0:00:18.6]} 44. Rb4+
{[%clk 0:00:03.7]} 44... Kd3 {[%clk 0:00:18.9]} 45. Rd4+ {[%clk 0:00:03.6]}
45... Kc2 {[%clk 0:00:18.2]} 46. Rd2+ {[%clk 0:00:04.1]} 46... Rxd2 {[%clk
0:00:17.6]} 47. Bxd2 {[%clk 0:00:05]} 47... Kxd2 {[%clk 0:00:18.2]} 48. a7
{[%clk 0:00:05.8]} 48... Rxg3 {[%clk 0:00:16.9]} 49. Rd7+ {[%clk 0:00:04.5]}
49... Ke3 {[%clk 0:00:17.3]} 50. Re7+ {[%clk 0:00:03]} 50... Kf4 {[%clk
0:00:17.3]} 51. Kf2 {[%clk 0:00:03.7]} 51... Rg2+ {[%clk 0:00:17.3]} 52. Ke1
{[%clk 0:00:04.1]} 52... Ra2 {[%clk 0:00:17.1]} 53. Re6 {[%clk 0:00:03.9]} 53...
Be4 {[%clk 0:00:17.1]} 54. Rxb6 {[%clk 0:00:04.3]} 54... Rxa7 {[%clk 0:00:17.1]}
55. Rb2 {[%clk 0:00:04]} 55... Ke3 {[%clk 0:00:17.2]} 56. Re2+ {[%clk 0:00:04]}
56... Kd3 {[%clk 0:00:17.7]} 57. Ra2 {[%clk 0:00:03.7]} 57... f4 {[%clk
0:00:17.1]} 58. Rxa7 {[%clk 0:00:03.7]} 58... Kxc3 {[%clk 0:00:15.3]} 59. Rf7
{[%clk 0:00:03.7]} 59... f3 {[%clk 0:00:15.4]} 60. Rf8 {[%clk 0:00:04.6]} 60...
Kd4 {[%clk 0:00:15.9]} 61. Kf2 {[%clk 0:00:05.5]} 61... Kd3 {[%clk 0:00:15.7]}
62. Rf6 {[%clk 0:00:05.9]} 62... Kd4 {[%clk 0:00:15.8]} 63. Rf8 {[%clk
0:00:06.8]} 63... Kd3 {[%clk 0:00:15.8]} 64. Rd8+ {[%clk 0:00:07.7]} 64... Kc4
{[%clk 0:00:14.7]} 65. Re8 {[%clk 0:00:08.6]} 65... Bd5 {[%clk 0:00:14.8]} 66.
Ke3 {[%clk 0:00:08.4]} 66... Kc5 {[%clk 0:00:14.2]} 67. Rc8+ {[%clk 0:00:08.7]}
67... Bc6 {[%clk 0:00:13.9]} 68. Rd8 {[%clk 0:00:07.6]} 68... Bd5 {[%clk
0:00:14]} 69. Rf8 {[%clk 0:00:07.1]} 69... Bc6 {[%clk 0:00:13.7]} 70. Kf2 {[%clk
0:00:08]} 70... Bd5 {[%clk 0:00:13.3]} 71. Rf5 {[%clk 0:00:08.3]} 71... Kd4
{[%clk 0:00:12.9]} 72. Rf8 {[%clk 0:00:08.3]} 72... Be4 {[%clk 0:00:12.4]} 73.
Rb8 {[%clk 0:00:09.2]} 73... Kd5 {[%clk 0:00:12.1]} 74. Rd8+ {[%clk 0:00:09.5]}
74... Ke5 {[%clk 0:00:12.5]} 75. Rd2 {[%clk 0:00:09.9]} 75... Kf4 {[%clk
0:00:12.1]} 76. Rb2 {[%clk 0:00:10.2]} 76... Bd5 {[%clk 0:00:11.9]} 77. Rb6
{[%clk 0:00:11.1]} 77... Ke5 {[%clk 0:00:12.2]} 78. Rb8 {[%clk 0:00:12]} 78...
Be4 {[%clk 0:00:12.3]} 79. Rf8 {[%clk 0:00:12.9]} 79... Bd5 {[%clk 0:00:12.3]}
80. Rh8 {[%clk 0:00:13.8]} 80... Bc6 {[%clk 0:00:12.5]} 81. Rf8 {[%clk
0:00:14.2]} 81... Bd5 {[%clk 0:00:12.7]} 82. Rxf3 {[%clk 0:00:15]} 82... Bxf3
{[%clk 0:00:12.8]} 1/2-1/2

[Event "Late-Titled-Tuesday-Blitz-January-23-2024"]
[Site "Chess.com"]
[Date "2024.01.23"]
[Round "4"]
[White "JackRodgers"]
[Black "sergeikim"]
[Result "1/2-1/2"]
[WhiteElo "2558"]
[BlackElo "2419"]
[TimeControl "180+1"]
[EndTime "14:39:39 PST"]
[Termination "Game drawn by repetition"]

1. d4 {[%clk 0:03:00.9]} 1... Nf6 {[%clk 0:02:56]} 2. Bg5 {[%clk 0:03:00.6]}
2... g6 {[%clk 0:02:56.2]} 3. Bxf6 {[%clk 0:03:00.1]} 3... exf6 {[%clk
0:02:56.6]} 4. e3 {[%clk 0:03:00.8]} 4... h5 {[%clk 0:02:56.7]} 5. h4 {[%clk
0:03:00.9]} 5... Bh6 {[%clk 0:02:55.9]} 6. g3 {[%clk 0:03:01]} 6... d6 {[%clk
0:02:56]} 7. Bg2 {[%clk 0:03:01.2]} 7... Nd7 {[%clk 0:02:55.8]} 8. Nd2 {[%clk
0:03:01.1]} 8... f5 {[%clk 0:02:56]} 9. Ne2 {[%clk 0:03:01]} 9... Nf6 {[%clk
0:02:56]} 10. c4 {[%clk 0:03:00.2]} 10... O-O {[%clk 0:02:55.7]} 11. O-O {[%clk
0:03:00.2]} 11... Re8 {[%clk 0:02:55.3]} 12. Nf3 {[%clk 0:02:52]} 12... Ng4
{[%clk 0:02:54.4]} 13. Nf4 {[%clk 0:02:48.8]} 13... Bd7 {[%clk 0:02:50.7]} 14.
b4 {[%clk 0:02:46.8]} 14... a5 {[%clk 0:02:48.4]} 15. a3 {[%clk 0:02:45.8]}
15... axb4 {[%clk 0:02:39.4]} 16. axb4 {[%clk 0:02:46.7]} 16... Rxa1 {[%clk
0:02:38.8]} 17. Qxa1 {[%clk 0:02:46.9]} 17... Bc6 {[%clk 0:02:38.7]} 18. d5
{[%clk 0:02:40.3]} 18... Bd7 {[%clk 0:02:38]} 19. Re1 {[%clk 0:02:25.1]} 19...
Qe7 {[%clk 0:02:35.3]} 20. Qa7 {[%clk 0:02:16.2]} 20... Bc8 {[%clk 0:02:34.1]}
21. c5 {[%clk 0:01:59.7]} 21... Qf6 {[%clk 0:02:26.9]} 22. cxd6 {[%clk
0:01:52.9]} 22... cxd6 {[%clk 0:02:26.5]} 23. Qd4 {[%clk 0:01:48.5]} 23... Qe7
{[%clk 0:02:24.9]} 24. Qb6 {[%clk 0:01:38.4]} 24... Qf6 {[%clk 0:02:22.4]} 25.
Qd4 {[%clk 0:01:26]} 25... Qe7 {[%clk 0:02:16.4]} 26. Rc1 {[%clk 0:01:23.1]}
26... Bg7 {[%clk 0:02:13.2]} 27. Qb6 {[%clk 0:01:22.2]} 27... Qf6 {[%clk
0:02:02.6]} 28. Nd4 {[%clk 0:01:14.6]} 28... Qe5 {[%clk 0:01:55.1]} 29. Nb5
{[%clk 0:01:07.4]} 29... Qb2 {[%clk 0:01:47.9]} 30. Nd3 {[%clk 0:00:55.6]} 30...
Qd2 {[%clk 0:01:35.4]} 31. Nxd6 {[%clk 0:00:52.9]} 31... Rf8 {[%clk 0:01:10.2]}
32. Rxc8 {[%clk 0:00:29.2]} 32... Qxd3 {[%clk 0:01:04.9]} 33. Rxf8+ {[%clk
0:00:21.4]} 33... Bxf8 {[%clk 0:01:04.7]} 34. Qc7 {[%clk 0:00:16.4]} 34... Bxd6
{[%clk 0:01:02]} 35. Qxd6 {[%clk 0:00:14.5]} 35... Qe2 {[%clk 0:00:54.2]} 36.
Qb8+ {[%clk 0:00:13.4]} 36... Kg7 {[%clk 0:00:52.9]} 37. Qf4 {[%clk 0:00:14.3]}
37... Qe1+ {[%clk 0:00:52]} 38. Bf1 {[%clk 0:00:14.7]} 38... f6 {[%clk
0:00:50.1]} 39. d6 {[%clk 0:00:11.6]} 39... Ne5 {[%clk 0:00:50]} 40. f3 {[%clk
0:00:10.2]} 40... Qd1 {[%clk 0:00:49.3]} 41. Kf2 {[%clk 0:00:09.4]} 41... Qxd6
{[%clk 0:00:48.3]} 42. Be2 {[%clk 0:00:08.5]} 42... Qd2 {[%clk 0:00:47.1]} 43.
Qd4 {[%clk 0:00:07.4]} 43... Qxd4 {[%clk 0:00:46.5]} 44. exd4 {[%clk 0:00:08.3]}
44... Nc6 {[%clk 0:00:46.6]} 45. Ke3 {[%clk 0:00:03.1]} 45... Nxb4 {[%clk
0:00:46]} 46. Bc4 {[%clk 0:00:03.5]} 46... Kf8 {[%clk 0:00:44.2]} 47. d5 {[%clk
0:00:04.1]} 47... Ke7 {[%clk 0:00:43.9]} 48. Kd4 {[%clk 0:00:04.7]} 48... Kd6
{[%clk 0:00:43.8]} 49. Bb3 {[%clk 0:00:05.4]} 49... Na6 {[%clk 0:00:41.6]} 50.
Bc4 {[%clk 0:00:05.2]} 50... Nc7 {[%clk 0:00:40]} 51. Bb3 {[%clk 0:00:05.3]}
51... b5 {[%clk 0:00:39.5]} 52. Ba2 {[%clk 0:00:05.7]} 52... Na6 {[%clk
0:00:39.4]} 53. Bb3 {[%clk 0:00:06.2]} 53... Nb4 {[%clk 0:00:36.9]} 54. f4
{[%clk 0:00:03.1]} 54... Na6 {[%clk 0:00:35.6]} 55. Ba2 {[%clk 0:00:02.8]} 55...
Nc5 {[%clk 0:00:35.4]} 56. Bb1 {[%clk 0:00:03.1]} 56... Ne4 {[%clk 0:00:30.6]}
57. Bd3 {[%clk 0:00:03.1]} 57... Nxg3 {[%clk 0:00:29.5]} 58. Bxb5 {[%clk
0:00:03.4]} 58... Ne4 {[%clk 0:00:28.9]} 59. Be8 {[%clk 0:00:02.8]} 59... Nd2
{[%clk 0:00:24.4]} 60. Bxg6 {[%clk 0:00:03]} 60... Nf3+ {[%clk 0:00:24.4]} 61.
Ke3 {[%clk 0:00:03.6]} 61... Nxh4 {[%clk 0:00:24.8]} 62. Bxh5 {[%clk 0:00:03.5]}
62... Kxd5 {[%clk 0:00:24.6]} 63. Bf7+ {[%clk 0:00:03.7]} 63... Kd6 {[%clk
0:00:24.1]} 64. Ba2 {[%clk 0:00:04.6]} 64... Ng6 {[%clk 0:00:23.5]} 65. Bb1
{[%clk 0:00:04.4]} 65... Ne7 {[%clk 0:00:23.3]} 66. Kd4 {[%clk 0:00:04.8]} 66...
Ke6 {[%clk 0:00:23.2]} 67. Ba2+ {[%clk 0:00:04.2]} 67... Kd6 {[%clk 0:00:22.3]}
68. Bb1 {[%clk 0:00:05.1]} 68... Ke6 {[%clk 0:00:22.2]} 69. Ba2+ {[%clk
0:00:05.6]} 69... Kd6 {[%clk 0:00:21.2]} 70. Bb3 {[%clk 0:00:06]} 70... Nc6+
{[%clk 0:00:18.9]} 71. Ke3 {[%clk 0:00:05.9]} 71... Ne7 {[%clk 0:00:18.8]} 72.
Bc2 {[%clk 0:00:06.1]} 72... Nd5+ {[%clk 0:00:17.8]} 73. Kf3 {[%clk 0:00:05.7]}
73... Ne7 {[%clk 0:00:17.6]} 74. Bd3 {[%clk 0:00:05.9]} 74... Kd5 {[%clk
0:00:17.7]} 75. Bc2 {[%clk 0:00:06.2]} 75... Kd4 {[%clk 0:00:17.8]} 76. Bb1
{[%clk 0:00:06.6]} 76... Kd5 {[%clk 0:00:16.8]} 77. Bc2 {[%clk 0:00:07.1]} 77...
Kd4 {[%clk 0:00:17.1]} 78. Bb1 {[%clk 0:00:07.5]} 78... Kd5 {[%clk 0:00:17.5]}
79. Bc2 {[%clk 0:00:08]} 1/2-1/2

[Event "Late-Titled-Tuesday-Blitz-January-23-2024"]
[Site "Chess.com"]
[Date "2024.01.23"]
[Round "4"]
[White "MightyGMpretender"]
[Black "Rud_Makarian"]
[Result "1/2-1/2"]
[WhiteElo "2762"]
[BlackElo "2978"]
[TimeControl "180+1"]
[EndTime "14:39:53 PST"]
[Termination "Game drawn by repetition"]

1. e4 {[%clk 0:02:56.5]} 1... c5 {[%clk 0:02:59.7]} 2. Be2 {[%clk 0:02:56.8]}
2... Nc6 {[%clk 0:02:59.7]} 3. f4 {[%clk 0:02:57]} 3... e6 {[%clk 0:03:00.2]} 4.
Nf3 {[%clk 0:02:57]} 4... d5 {[%clk 0:03:00.6]} 5. d3 {[%clk 0:02:55.9]} 5...
Be7 {[%clk 0:03:01]} 6. O-O {[%clk 0:02:55.3]} 6... Nh6 {[%clk 0:03:01.7]} 7. c3
{[%clk 0:02:50]} 7... O-O {[%clk 0:03:01.4]} 8. Kh1 {[%clk 0:02:48.9]} 8... f6
{[%clk 0:03:01.8]} 9. Be3 {[%clk 0:02:48.5]} 9... b6 {[%clk 0:03:01.9]} 10. Nbd2
{[%clk 0:02:44.8]} 10... Bb7 {[%clk 0:03:01.8]} 11. Qe1 {[%clk 0:02:43.6]} 11...
Qd7 {[%clk 0:03:02.1]} 12. Qg3 {[%clk 0:02:42.9]} 12... Kh8 {[%clk 0:02:57.8]}
13. Rad1 {[%clk 0:02:41.4]} 13... Rad8 {[%clk 0:02:57.6]} 14. Qh3 {[%clk
0:02:38.6]} 14... f5 {[%clk 0:02:53.1]} 15. Qg3 {[%clk 0:02:24.2]} 15... b5
{[%clk 0:02:40.8]} 16. h3 {[%clk 0:02:05.2]} 16... a5 {[%clk 0:02:36.8]} 17. Ng5
{[%clk 0:01:52.4]} 17... a4 {[%clk 0:02:24.5]} 18. a3 {[%clk 0:01:49.4]} 18...
b4 {[%clk 0:02:21.4]} 19. Bf3 {[%clk 0:01:26.8]} 19... d4 {[%clk 0:02:01.8]} 20.
cxd4 {[%clk 0:01:18.8]} 20... cxd4 {[%clk 0:02:02]} 21. Bg1 {[%clk 0:01:16.8]}
21... bxa3 {[%clk 0:02:02.5]} 22. bxa3 {[%clk 0:01:16.9]} 22... Bxa3 {[%clk
0:01:57.8]} 23. Nc4 {[%clk 0:01:17.5]} 23... Be7 {[%clk 0:01:48.1]} 24. Ra1
{[%clk 0:01:13.9]} 24... Bxg5 {[%clk 0:00:57.6]} 25. fxg5 {[%clk 0:01:13.2]}
25... f4 {[%clk 0:00:58.2]} 26. Qh4 {[%clk 0:01:09.5]} 26... Nf7 {[%clk
0:00:56.4]} 27. g6 {[%clk 0:01:03.4]} 27... Nh6 {[%clk 0:00:56]} 28. Bh2 {[%clk
0:00:36]} 28... Qe7 {[%clk 0:00:42.6]} 29. Qh5 {[%clk 0:00:27.9]} 29... Ra8
{[%clk 0:00:28.4]} 30. Rfb1 {[%clk 0:00:22.8]} 30... Ba6 {[%clk 0:00:22]} 31.
Rxa4 {[%clk 0:00:21.6]} 31... Bxc4 {[%clk 0:00:22.1]} 32. Rxc4 {[%clk 0:00:22]}
32... Ra5 {[%clk 0:00:22.4]} 33. Rxc6 {[%clk 0:00:12.2]} 33... Rxh5 {[%clk
0:00:21.7]} 34. Bxh5 {[%clk 0:00:13.1]} 34... hxg6 {[%clk 0:00:21.6]} 35. Bf3
{[%clk 0:00:11.1]} 35... g5 {[%clk 0:00:18.5]} 36. Bg1 {[%clk 0:00:10.1]} 36...
g4 {[%clk 0:00:17.7]} 37. hxg4 {[%clk 0:00:10.4]} 37... Qh4+ {[%clk 0:00:17.1]}
38. Bh2 {[%clk 0:00:11]} 38... Nxg4 {[%clk 0:00:17.4]} 39. Bxg4 {[%clk
0:00:11.1]} 39... Qxg4 {[%clk 0:00:18.3]} 40. Rf1 {[%clk 0:00:03.1]} 40... f3
{[%clk 0:00:17.2]} 41. gxf3 {[%clk 0:00:03.7]} 41... Rxf3 {[%clk 0:00:17.8]} 42.
Rg1 {[%clk 0:00:04.1]} 42... Qh5 {[%clk 0:00:11.2]} 43. Rc8+ {[%clk 0:00:04.1]}
43... Kh7 {[%clk 0:00:11.2]} 44. Rc7 {[%clk 0:00:04.1]} 44... Rf7 {[%clk
0:00:11.7]} 45. Rxf7 {[%clk 0:00:04]} 45... Qxf7 {[%clk 0:00:12.6]} 46. Rg3
{[%clk 0:00:02.9]} 46... Qf1+ {[%clk 0:00:12.6]} 47. Bg1 {[%clk 0:00:03.7]}
47... g5 {[%clk 0:00:10.5]} 48. Kh2 {[%clk 0:00:03.7]} 48... Qe2+ {[%clk
0:00:08.7]} 49. Kh3 {[%clk 0:00:02.7]} 49... Qh5+ {[%clk 0:00:06.6]} 50. Kg2
{[%clk 0:00:02.7]} 50... Kg6 {[%clk 0:00:04.8]} 51. Bxd4 {[%clk 0:00:02.2]}
51... Qe2+ {[%clk 0:00:05.4]} 52. Bf2 {[%clk 0:00:02.6]} 52... g4 {[%clk
0:00:04.7]} 53. Re3 {[%clk 0:00:03.1]} 53... Qd1 {[%clk 0:00:04.9]} 54. Rg3
{[%clk 0:00:03.3]} 54... Kg5 {[%clk 0:00:04.4]} 55. Be3+ {[%clk 0:00:03.7]}
55... Kh4 {[%clk 0:00:04.4]} 56. Bf2 {[%clk 0:00:03.7]} 56... Kh5 {[%clk
0:00:05.1]} 57. Bg1 {[%clk 0:00:03]} 57... Qe2+ {[%clk 0:00:05.1]} 58. Bf2
{[%clk 0:00:03.5]} 58... Qc2 {[%clk 0:00:03.9]} 59. Re3 {[%clk 0:00:03.8]} 59...
Kg5 {[%clk 0:00:03.7]} 60. Rg3 {[%clk 0:00:04.4]} 60... Kf4 {[%clk 0:00:03.9]}
61. Re3 {[%clk 0:00:04.9]} 61... Kg5 {[%clk 0:00:03.2]} 62. Rg3 {[%clk
0:00:05.5]} 62... Kh5 {[%clk 0:00:03.4]} 63. Re3 {[%clk 0:00:05.6]} 63... Qa2
{[%clk 0:00:04]} 64. Rg3 {[%clk 0:00:06.2]} 64... Qd2 {[%clk 0:00:03.9]} 65. Re3
{[%clk 0:00:06.7]} 65... e5 {[%clk 0:00:04.4]} 66. Rg3 {[%clk 0:00:07.3]} 66...
Kg5 {[%clk 0:00:04.5]} 67. Re3 {[%clk 0:00:07.9]} 67... Qd1 {[%clk 0:00:05.1]}
68. Rg3 {[%clk 0:00:08.5]} 68... Kf6 {[%clk 0:00:05.6]} 69. Be3 {[%clk
0:00:07.1]} 69... Ke6 {[%clk 0:00:05.4]} 70. Bf2 {[%clk 0:00:06.6]} 70... Kd6
{[%clk 0:00:05.3]} 71. Re3 {[%clk 0:00:07.2]} 71... Kc6 {[%clk 0:00:05.7]} 72.
Rg3 {[%clk 0:00:07.6]} 72... Kb5 {[%clk 0:00:06]} 73. Re3 {[%clk 0:00:03.9]}
73... Kc6 {[%clk 0:00:06.6]} 74. Rg3 {[%clk 0:00:03.6]} 74... Kc7 {[%clk
0:00:07.2]} 75. Re3 {[%clk 0:00:04.3]} 75... Kd7 {[%clk 0:00:07.8]} 76. Rg3
{[%clk 0:00:05.2]} 76... Ke6 {[%clk 0:00:08.4]} 77. Re3 {[%clk 0:00:05.9]} 77...
Kf6 {[%clk 0:00:08.9]} 78. Rg3 {[%clk 0:00:06.6]} 78... Kg5 {[%clk 0:00:08.3]}
79. Be3+ {[%clk 0:00:07.2]} 79... Kh5 {[%clk 0:00:07.7]} 80. Bf2 {[%clk
0:00:08.1]} 80... Qd2 {[%clk 0:00:07.1]} 81. Re3 {[%clk 0:00:08]} 81... Kg5
{[%clk 0:00:07.6]} 82. Rg3 {[%clk 0:00:08.4]} 82... Kf4 {[%clk 0:00:07.7]} 83.
Kf1 {[%clk 0:00:08.1]} 83... Qd1+ {[%clk 0:00:06]} 84. Kg2 {[%clk 0:00:08.7]}
84... Kg5 {[%clk 0:00:06.2]} 85. Be3+ {[%clk 0:00:08.5]} 85... Kh5 {[%clk
0:00:06]} 86. Bf2 {[%clk 0:00:09.4]} 86... Qb1 {[%clk 0:00:05.4]} 87. Re3 {[%clk
0:00:09.6]} 87... Qd1 {[%clk 0:00:05.1]} 88. Rg3 {[%clk 0:00:10.5]} 1/2-1/2

[Event "Late-Titled-Tuesday-Blitz-January-23-2024"]
[Site "Chess.com"]
[Date "2024.01.23"]
[Round "4"]
[White "Grischuk"]
[Black "sakkikuska"]
[Result "1-0"]
[WhiteElo "3063"]
[BlackElo "2659"]
[TimeControl "180+1"]
[EndTime "14:40:05 PST"]
[Termination "Grischuk won on time"]

1. d4 {[%clk 0:03:00.9]} 1... Nf6 {[%clk 0:02:59.9]} 2. c4 {[%clk 0:03:00.6]}
2... g6 {[%clk 0:03:00]} 3. g3 {[%clk 0:03:00.9]} 3... c6 {[%clk 0:02:58.6]} 4.
Nf3 {[%clk 0:02:59.5]} 4... d5 {[%clk 0:02:55.6]} 5. Qa4 {[%clk 0:02:59.6]} 5...
dxc4 {[%clk 0:02:52.1]} 6. Qxc4 {[%clk 0:03:00.5]} 6... Bg7 {[%clk 0:02:52.1]}
7. Bg2 {[%clk 0:03:00.1]} 7... O-O {[%clk 0:02:52.2]} 8. O-O {[%clk 0:03:00.4]}
8... Nbd7 {[%clk 0:02:47]} 9. Nc3 {[%clk 0:02:57.1]} 9... Nb6 {[%clk 0:02:46.7]}
10. Qb3 {[%clk 0:02:53.6]} 10... Bf5 {[%clk 0:02:20.3]} 11. Bf4 {[%clk
0:02:39.4]} 11... Ne4 {[%clk 0:02:02.7]} 12. e3 {[%clk 0:02:34.2]} 12... Nxc3
{[%clk 0:01:48.9]} 13. bxc3 {[%clk 0:02:33.4]} 13... Be4 {[%clk 0:01:48.2]} 14.
Rac1 {[%clk 0:02:11.3]} 14... h6 {[%clk 0:01:41.5]} 15. h4 {[%clk 0:02:10.3]}
15... Bd5 {[%clk 0:01:25.7]} 16. Qc2 {[%clk 0:01:58.4]} 16... Nc4 {[%clk
0:01:12.6]} 17. e4 {[%clk 0:01:58.4]} 17... Be6 {[%clk 0:01:12.5]} 18. Nd2
{[%clk 0:01:37.9]} 18... Nxd2 {[%clk 0:01:12.2]} 19. Qxd2 {[%clk 0:01:37.8]}
19... Kh7 {[%clk 0:01:10.8]} 20. Rfd1 {[%clk 0:01:30.6]} 20... Bg4 {[%clk
0:01:04.5]} 21. f3 {[%clk 0:01:23.5]} 21... Be6 {[%clk 0:01:04.2]} 22. c4 {[%clk
0:01:23.6]} 22... c5 {[%clk 0:00:51.8]} 23. d5 {[%clk 0:01:22.8]} 23... Bd7
{[%clk 0:00:52]} 24. e5 {[%clk 0:01:16.4]} 24... e6 {[%clk 0:00:49]} 25. Qe3
{[%clk 0:01:07]} 25... Qc7 {[%clk 0:00:28.5]} 26. g4 {[%clk 0:00:49.9]} 26... b6
{[%clk 0:00:25.1]} 27. d6 {[%clk 0:00:43.6]} 27... Qb7 {[%clk 0:00:22.6]} 28. g5
{[%clk 0:00:43.7]} 28... h5 {[%clk 0:00:22.6]} 29. Bg3 {[%clk 0:00:41]} 29...
Rad8 {[%clk 0:00:22.1]} 30. f4 {[%clk 0:00:40.7]} 30... Bc6 {[%clk 0:00:22.6]}
31. Rd2 {[%clk 0:00:34.4]} 31... Rd7 {[%clk 0:00:21.4]} 32. Bxc6 {[%clk
0:00:26.2]} 32... Qxc6 {[%clk 0:00:22.3]} 33. Kf2 {[%clk 0:00:25.8]} 33... Rfd8
{[%clk 0:00:20.8]} 34. Qf3 {[%clk 0:00:24.9]} 34... Qa4 {[%clk 0:00:19.6]} 35.
Kg2 {[%clk 0:00:23.4]} 35... Bf8 {[%clk 0:00:15.9]} 36. Bf2 {[%clk 0:00:16.2]}
36... Kg7 {[%clk 0:00:13.6]} 37. Rc3 {[%clk 0:00:14.4]} 37... Qa6 {[%clk
0:00:11.7]} 38. Qe4 {[%clk 0:00:12.7]} 38... Rc8 {[%clk 0:00:09.3]} 39. Qd3
{[%clk 0:00:11.9]} 39... Qb7+ {[%clk 0:00:09.1]} 40. Kh2 {[%clk 0:00:08.9]}
40... Be7 {[%clk 0:00:09.2]} 41. Ra3 {[%clk 0:00:07.8]} 41... Bd8 {[%clk
0:00:09.2]} 42. Qf3 {[%clk 0:00:08]} 42... Qxf3 {[%clk 0:00:08.3]} 43. Rxf3
{[%clk 0:00:08]} 43... a5 {[%clk 0:00:08.9]} 44. Rb3 {[%clk 0:00:07.1]} 44...
Rc6 {[%clk 0:00:09.3]} 45. Kg3 {[%clk 0:00:06.7]} 45... Kf8 {[%clk 0:00:09.6]}
46. Rb5 {[%clk 0:00:07.2]} 46... Kg7 {[%clk 0:00:09.7]} 47. Rdb2 {[%clk
0:00:07.5]} 47... Ra7 {[%clk 0:00:07.5]} 48. Kf3 {[%clk 0:00:08]} 48... Ra6
{[%clk 0:00:07.6]} 49. Ke4 {[%clk 0:00:08.5]} 49... Kf8 {[%clk 0:00:08.1]} 50.
Rb1 {[%clk 0:00:08.8]} 50... Ke8 {[%clk 0:00:08.4]} 51. R5b2 {[%clk 0:00:07.9]}
51... Kd7 {[%clk 0:00:08.7]} 52. Kd3 {[%clk 0:00:08.5]} 52... Ra8 {[%clk
0:00:09.1]} 53. Kc2 {[%clk 0:00:08.9]} 53... Ra6 {[%clk 0:00:09.2]} 54. Kb3
{[%clk 0:00:09.4]} 54... Ra8 {[%clk 0:00:09.4]} 55. Ka4 {[%clk 0:00:09.6]} 55...
Ra6 {[%clk 0:00:09.9]} 56. Rb5 {[%clk 0:00:09.2]} 56... Ra8 {[%clk 0:00:10.1]}
57. R1b3 {[%clk 0:00:08.7]} 57... Ra6 {[%clk 0:00:10.3]} 58. Rd3 {[%clk
0:00:08.5]} 58... Ra8 {[%clk 0:00:10.2]} 59. Rbb3 {[%clk 0:00:08.4]} 59... Ra7
{[%clk 0:00:10.5]} 60. Ra3 {[%clk 0:00:08.5]} 60... Ra8 {[%clk 0:00:10.1]} 61.
Kb5 {[%clk 0:00:08.9]} 61... Ra7 {[%clk 0:00:10]} 62. Ka4 {[%clk 0:00:08.9]}
62... Ra8 {[%clk 0:00:10.3]} 63. Rab3 {[%clk 0:00:09.4]} 63... Ra7 {[%clk
0:00:10.7]} 64. Rb5 {[%clk 0:00:09.9]} 64... Ra8 {[%clk 0:00:11.2]} 65. Rdb3
{[%clk 0:00:09.9]} 65... Ra6 {[%clk 0:00:11.2]} 66. Bxc5 {[%clk 0:00:08.2]}
66... Rxc5 {[%clk 0:00:10.9]} 67. Rxc5 {[%clk 0:00:08.2]} 67... bxc5 {[%clk
0:00:11.4]} 68. Rb7+ {[%clk 0:00:08.7]} 68... Ke8 {[%clk 0:00:11.8]} 69. Kb5
{[%clk 0:00:08.2]} 69... Ra8 {[%clk 0:00:10.6]} 70. Kxc5 {[%clk 0:00:02.8]}
70... a4 {[%clk 0:00:08.8]} 71. Kb5 {[%clk 0:00:02.4]} 71... Ra5+ {[%clk
0:00:07.8]} 72. Kb4 {[%clk 0:00:02.8]} 72... Ra8 {[%clk 0:00:07.8]} 73. c5
{[%clk 0:00:03.3]} 73... Ba5+ {[%clk 0:00:06.5]} 74. Kb5 {[%clk 0:00:03.6]}
74... Bd2 {[%clk 0:00:06]} 75. c6 {[%clk 0:00:04.1]} 75... Bxf4 {[%clk 0:00:04]}
76. c7 {[%clk 0:00:04]} 76... Kd7 {[%clk 0:00:04.3]} 77. Rb8 {[%clk 0:00:04.4]}
1-0